Workbook

Sheet D-F1
A1: 1 | B1: 2 | C1: 3 | D1: 4 | E1: 5 | F1: 6 | G1: 7 | H1: 8 | I1: 9 | J1: 10 | K1: 11 | L1: 12 | M1: 13 | N1: 14 | O1: 15 | P1: 16 | Q1: 17 | R1: 18 | S1: 19 | T1: 20 | U1: 21 | V1: 22 | W1: 23 | X1: 24 | Y1: 25 | Z1: 26 | AA1: 27 | AB1: 28 | AC1: 29 | AD1: 30 | AE1: 31 | AF1: 32 | AG1: 33 | AH1: 34 | AI1: 35 | AJ1: 36 | AK1: 37 | AL1: 38 | AM1: 39 | AN1: 40 | AO1: 41 | AP1: 42 | AQ1: 43 | AR1: 44 | AS1: 45 | AT1: 46 | AU1: 47 | AV1: 48 | AW1: 49 | AX1: 50 | AY1: 51 | AZ1: 52 | BA1: 53 | BB1: 54 | BC1: 55 | BD1: 56 | BE1: 57 | BF1: 58 | BG1: 59 | BH1: 60 | BI1: 61 | BJ1: 62 | BK1: 63 | BL1: 64 | BM1: 65 | BN1: 66 | BO1: 67 | BP1: 68 | BQ1: 69 | BR1: 70 | BS1: 71 | BT1: 72 | BU1: 73 | BV1: 74 | BW1: 75 | BX1: 76 | BY1: 77 | BZ1: 78 | CA1: 79 | CB1: 80 | CC1: 81 | CD1: 82 | CE1: 83 | CF1: 84 | CG1: 85 | CH1: 86 | CI1: 87 | CJ1: 88 | CK1: 89 | CL1: 90 | CM1: 91 | CN1: 92 | CO1: 93 | CP1: 94 | CQ1: 95 | CR1: 96 | CS1: 97 | CT1: 98 | CU1: 99 | CV1: 100 | CW1: 101 | CX1: 102 | CY1: 103
G5: التربية الإسلامية | P5: اللغة العربية | Y5: اللغة الإنجليزية | AH5: تقنية المعلومات | AQ5: الرياضيات | AZ5: الفيزياء | BI5: الكيمياء | BR5: الأحياء | CA5: التاريخ | CJ5: الجغرافيا | CS5: علم الاجتماع | CX5: المجموع | CY5: النسبة
G6: الفصل الأول | J6: الدرجات الناقصة في الإمتحان | K6: الدرجات الناقصة في المجموع | P6: الفصل الأول | S6: الدرجات الناقصة في الإمتحان | T6: الدرجات الناقصة في المجموع | Y6: الفصل الأول | AB6: الدرجات الناقصة في الإمتحان | AC6: الدرجات الناقصة في المجموع | AH6: الفصل الأول | AK6: الدرجات الناقصة في الإمتحان | AL6: الدرجات الناقصة في المجموع | AQ6: الفصل الأول | AT6: الدرجات الناقصة في الإمتحان | AU6: الدرجات الناقصة في المجموع | AZ6: الفصل الأول | BC6: الدرجات الناقصة في الإمتحان | BD6: الدرجات الناقصة في المجموع | BI6: الفصل الأول | BL6: الدرجات الناقصة في الإمتحان | BM6: الدرجات الناقصة في المجموع | BR6: الفصل الأول | BU6: الدرجات الناقصة في الإمتحان | BV6: الدرجات الناقصة في المجموع | CA6: الفصل الأول | CD6: الدرجات الناقصة في الإمتحان | CE6: الدرجات الناقصة في المجموع | CJ6: الفصل الأول | CM6: الدرجات الناقصة في الإمتحان | CN6: الدرجات الناقصة في المجموع | CS6: الفصل الأول | CV6: الدرجات الناقصة في الإمتحان | CW6: الدرجات الناقصة في المجموع
H7: الصغرى | I7: الصغرى | Q7: الصغرى | R7: الصغرى | Z7: الصغرى | AA7: الصغرى | AI7: الصغرى | AJ7: الصغرى | AR7: الصغرى | AS7: الصغرى | BA7: الصغرى | BB7: الصغرى | BJ7: الصغرى | BK7: الصغرى | BS7: الصغرى | BT7: الصغرى | CB7: الصغرى | CC7: الصغرى | CK7: الصغرى | CL7: الصغرى | CT7: الصغرى | CU7: الصغرى | CX7: المجموع
H8: 9.6 | I8: 20 | Q8: 19.2 | R8: 40 | Z8: 19.2 | AA8: 40 | AI8: 9.6 | AJ8: 20 | AR8: 24 | AS8: 50 | BA8: 14.4 | BB8: 30 | BJ8: 14.4 | BK8: 30 | BS8: 14.4 | BT8: 30 | CB8: 4.8 | CC8: 10 | CK8: 4.8 | CL8: 10 | CT8: 4.8 | CU8: 10 | CX8: 290
G9: الكبرى | H9: الكبرى | I9: الكبرى | P9: الكبرى | Q9: الكبرى | R9: الكبرى | Y9: الكبرى | Z9: الكبرى | AA9: الكبرى | AH9: الكبرى | AI9: الكبرى | AJ9: الكبرى | AQ9: الكبرى | AR9: الكبرى | AS9: الكبرى | AZ9: الكبرى | BA9: الكبرى | BB9: الكبرى | BI9: الكبرى | BJ9: الكبرى | BK9: الكبرى | BR9: الكبرى | BS9: الكبرى | BT9: الكبرى | CA9: الكبرى | CB9: الكبرى | CC9: الكبرى | CJ9: الكبرى | CK9: الكبرى | CL9: الكبرى | CS9: الكبرى | CT9: الكبرى | CU9: الكبرى | CX9: المجموع
G10: 16 | H10: 24 | I10: 40 | P10: 32 | Q10: 48 | R10: 80 | Y10: 32 | Z10: 48 | AA10: 80 | AH10: 16 | AI10: 24 | AJ10: 40 | AQ10: 40 | AR10: 60 | AS10: 100 | AZ10: 24 | BA10: 36 | BB10: 60 | BI10: 24 | BJ10: 36 | BK10: 60 | BR10: 24 | BS10: 36 | BT10: 60 | CA10: 8 | CB10: 12 | CC10: 20 | CJ10: 8 | CK10: 12 | CL10: 20 | CS10: 8 | CT10: 12 | CU10: 20 | CX10: 580 | CY10: =CX10/CX10 -> 1
A11: ر.م | B11: المجموع | C11: النتيجة | D11: رقم الجلوس | E11: الرقم الوطني | F11: اسم الطالب | G11: أعمال التربية الإسلامية | H11: إمتحان التربية الإسلامية | I11: المجموع | P11: أعمال اللغة العربية | Q11: إمتحان اللغة العربية | R11: المجموع | Y11: أعمال اللغة الإنجليزية | Z11: إمتحان الإنجليزية | AA11: المجموع | AH11: أعمال تقنية المعلومات | AI11: إمتحان تقنية المعلومات | AJ11: المجموع | AQ11: أعمال الرياضيات | AR11: إمتحان الرياضيات | AS11: المجموع | AZ11: أعمال الفيزياء | BA11: إمتحان الفيزياء | BB11: المجموع | BI11: أعمال الكيمياء | BJ11: إمتحان الكيمياء | BK11: المجموع | BR11: أعمال الأحياء | BS11: إمتحان الأحياء | BT11: المجموع | CA11: أعمال التاريخ | CB11: إمتحان التاريخ | CC11: المجموع | CJ11: أعمال الجغرافيا | CK11: إمتحان الجغرافيا | CL11: المجموع | CS11: أعمال علم الاجتماع | CT11: إمتحان علم الاجتماع | CU11: المجموع
A12: =SUBTOTAL(3,$F$12:F12) -> 1 | B12: =CX12 -> 40 | C12: =#REF! ->  | D12: 10 | E12: 134 | F12: ابرار | G12: 16 | H12: 24 | I12: =IF(G$5="","",IF($F12="","",SUM(G12:H12))) -> 40 | J12: =IF($G$5="","",IF($F12="","",H12-H$8)) -> 14.4 | K12: =IF($G$5="","",IF($F12="","",I12-I$8)) -> 20 | R12: =IF(P$5="","",IF($F12="","",SUM(P12:Q12))) -> 0 | S12: =IF($P$5="","",IF($F12="","",Q12-Q$8)) -> -19.2 | T12: =IF($P$5="","",IF($F12="","",R12-R$8)) -> -40 | AA12: =IF(Y$5="","",IF($F12="","",SUM(Y12:Z12))) -> 0 | AB12: =IF($Y$5="","",IF($F12="","",Z12-Z$8)) -> -19.2 | AC12: =IF($Y$5="","",IF($F12="","",AA12-AA$8)) -> -40 | AJ12: =IF(AH$5="","",IF($F12="","",SUM(AH12:AI12))) -> 0 | AK12: =IF($AH$5="","",IF($F12="","",AI12-AI$8)) -> -9.6 | AL12: =IF($AH$5="","",IF($F12="","",AJ12-AJ$8)) -> -20 | AS12: =IF(AQ$5="","",IF($F12="","",SUM(AQ12:AR12))) -> 0 | AT12: =IF($AQ$5="","",IF($F12="","",AR12-AR$8)) -> -24 | AU12: =IF($AQ$5="","",IF($F12="","",AS12-AS$8)) -> -50 | BB12: =IF(AZ$5="","",IF($F12="","",SUM(AZ12:BA12))) -> 0 | BC12: =IF($AZ$5="","",IF($F12="","",BA12-BA$8)) -> -14.4 | BD12: =IF($AZ$5="","",IF($F12="","",BB12-BB$8)) -> -30 | BK12: =IF(BI$5="","",IF($F12="","",SUM(BI12:BJ12))) -> 0 | BL12: =IF($BI$5="","",IF($F12="","",BJ12-BJ$8)) -> -14.4 | BM12: =IF($BI$5="","",IF($F12="","",BK12-BK$8)) -> -30 | BT12: =IF(BR$5="","",IF($F12="","",SUM(BR12:BS12))) -> 0 | BU12: =IF($BR$5="","",IF($F12="","",BS12-BS$8)) -> -14.4 | BV12: =IF($BR$5="","",IF($F12="","",BT12-BT$8)) -> -30 | CC12: =IF(CA$5="","",IF($F12="","",SUM(CA12:CB12))) -> 0 | CD12: =IF($CA$5="","",IF($F12="","",CB12-CB$8)) -> -4.8 | CE12: =IF($CA$5="","",IF($F12="","",CC12-CC$8)) -> -10 | CL12: =IF(CJ$5="","",IF($F12="","",SUM(CJ12:CK12))) -> 0 | CM12: =IF($CJ$5="","",IF($F12="","",CK12-CK$8)) -> -4.8 | CN12: =IF($CJ$5="","",IF($F12="","",CL12-CL$8)) -> -10 | CU12: =IF(CS$5="","",IF($F12="","",SUM(CS12:CT12))) -> 0 | CV12: =IF($CS$5="","",IF($F12="","",CT12-CT$8)) -> -4.8 | CW12: =IF($CS$5="","",IF($F12="","",CU12-CU$8)) -> -10 | CX12: =SUM(CU12,CL12,CC12,BT12,BK12,BB12,AS12,AJ12,AA12,R12,I12) -> 40 | CY12: =IF($CX12="","",CX12/CX$10) -> 0.06896551724
A13: =SUBTOTAL(3,$F$12:F13) -> 2 | B13: 37 | C13: =#REF! ->  | D13: 20 | E13: 234 | F13: إبراهيم | G13: 15 | H13: 22 | I13: =IF(G$5="","",IF($F13="","",SUM(G13:H13))) -> 37 | J13: =IF($G$5="","",IF($F13="","",H13-H$8)) -> 12.4 | K13: =IF($G$5="","",IF($F13="","",I13-I$8)) -> 17 | R13: =IF(P$5="","",IF($F13="","",SUM(P13:Q13))) -> 0 | S13: =IF($P$5="","",IF($F13="","",Q13-Q$8)) -> -19.2 | T13: =IF($P$5="","",IF($F13="","",R13-R$8)) -> -40 | AA13: =IF(Y$5="","",IF($F13="","",SUM(Y13:Z13))) -> 0 | AB13: =IF($Y$5="","",IF($F13="","",Z13-Z$8)) -> -19.2 | AC13: =IF($Y$5="","",IF($F13="","",AA13-AA$8)) -> -40 | AJ13: =IF(AH$5="","",IF($F13="","",SUM(AH13:AI13))) -> 0 | AK13: =IF($AH$5="","",IF($F13="","",AI13-AI$8)) -> -9.6 | AL13: =IF($AH$5="","",IF($F13="","",AJ13-AJ$8)) -> -20 | AS13: =IF(AQ$5="","",IF($F13="","",SUM(AQ13:AR13))) -> 0 | AT13: =IF($AQ$5="","",IF($F13="","",AR13-AR$8)) -> -24 | AU13: =IF($AQ$5="","",IF($F13="","",AS13-AS$8)) -> -50 | BB13: =IF(AZ$5="","",IF($F13="","",SUM(AZ13:BA13))) -> 0 | BC13: =IF($AZ$5="","",IF($F13="","",BA13-BA$8)) -> -14.4 | BD13: =IF($AZ$5="","",IF($F13="","",BB13-BB$8)) -> -30 | BK13: =IF(BI$5="","",IF($F13="","",SUM(BI13:BJ13))) -> 0 | BL13: =IF($BI$5="","",IF($F13="","",BJ13-BJ$8)) -> -14.4 | BM13: =IF($BI$5="","",IF($F13="","",BK13-BK$8)) -> -30 | BT13: =IF(BR$5="","",IF($F13="","",SUM(BR13:BS13))) -> 0 | BU13: =IF($BR$5="","",IF($F13="","",BS13-BS$8)) -> -14.4 | BV13: =IF($BR$5="","",IF($F13="","",BT13-BT$8)) -> -30 | CC13: =IF(CA$5="","",IF($F13="","",SUM(CA13:CB13))) -> 0 | CD13: =IF($CA$5="","",IF($F13="","",CB13-CB$8)) -> -4.8 | CE13: =IF($CA$5="","",IF($F13="","",CC13-CC$8)) -> -10 | CL13: =IF(CJ$5="","",IF($F13="","",SUM(CJ13:CK13))) -> 0 | CM13: =IF($CJ$5="","",IF($F13="","",CK13-CK$8)) -> -4.8 | CN13: =IF($CJ$5="","",IF($F13="","",CL13-CL$8)) -> -10 | CU13: =IF(CS$5="","",IF($F13="","",SUM(CS13:CT13))) -> 0 | CV13: =IF($CS$5="","",IF($F13="","",CT13-CT$8)) -> -4.8 | CW13: =IF($CS$5="","",IF($F13="","",CU13-CU$8)) -> -10 | CX13: =SUM(CU13,CL13,CC13,BT13,BK13,BB13,AS13,AJ13,AA13,R13,I13) -> 37 | CY13: =IF($CX13="","",CX13/CX$10) -> 0.06379310345
A14: =SUBTOTAL(3,$F$12:F14) -> 3 | B14: 34 | C14: =#REF! ->  | D14: 30 | E14: 334 | F14: احمد | G14: 14 | H14: 20 | I14: 34 | J14: 10.4 | K14: 14 | R14: 0 | S14: -19.2 | T14: -40 | AA14: 0 | AB14: -19.2 | AC14: -40 | AJ14: 0 | AK14: -9.6 | AL14: -20 | AS14: 0 | AT14: -24 | AU14: -50 | BB14: 0 | BC14: -14.4 | BD14: -30 | BK14: 0 | BL14: -14.4 | BM14: -30 | BT14: 0 | BU14: -14.4 | BV14: -30 | CC14: 0 | CD14: -4.8 | CE14: -10 | CL14: 0 | CM14: -4.8 | CN14: -10 | CU14: 0 | CV14: =IF($CS$5="","",IF($F14="","",CT14-CT$8)) -> -4.8 | CW14: =IF($CS$5="","",IF($F14="","",CU14-CU$8)) -> -10 | CX14: 34 | CY14: 0.05862068966
A15: =SUBTOTAL(3,$F$12:F15) -> 4 | B15: 34 | C15: =#REF! ->  | D15: 40 | E15: 434 | F15: اسمامة | G15: 13 | H15: 21 | I15: =IF(G$5="","",IF($F15="","",SUM(G15:H15))) -> 34 | J15: =IF($G$5="","",IF($F15="","",H15-H$8)) -> 11.4 | K15: =IF($G$5="","",IF($F15="","",I15-I$8)) -> 14 | R15: =IF(P$5="","",IF($F15="","",SUM(P15:Q15))) -> 0 | S15: =IF($P$5="","",IF($F15="","",Q15-Q$8)) -> -19.2 | T15: =IF($P$5="","",IF($F15="","",R15-R$8)) -> -40 | AA15: =IF(Y$5="","",IF($F15="","",SUM(Y15:Z15))) -> 0 | AB15: =IF($Y$5="","",IF($F15="","",Z15-Z$8)) -> -19.2 | AC15: =IF($Y$5="","",IF($F15="","",AA15-AA$8)) -> -40 | AJ15: =IF(AH$5="","",IF($F15="","",SUM(AH15:AI15))) -> 0 | AK15: =IF($AH$5="","",IF($F15="","",AI15-AI$8)) -> -9.6 | AL15: =IF($AH$5="","",IF($F15="","",AJ15-AJ$8)) -> -20 | AS15: =IF(AQ$5="","",IF($F15="","",SUM(AQ15:AR15))) -> 0 | AT15: =IF($AQ$5="","",IF($F15="","",AR15-AR$8)) -> -24 | AU15: =IF($AQ$5="","",IF($F15="","",AS15-AS$8)) -> -50 | BB15: =IF(AZ$5="","",IF($F15="","",SUM(AZ15:BA15))) -> 0 | BC15: =IF($AZ$5="","",IF($F15="","",BA15-BA$8)) -> -14.4 | BD15: =IF($AZ$5="","",IF($F15="","",BB15-BB$8)) -> -30 | BK15: =IF(BI$5="","",IF($F15="","",SUM(BI15:BJ15))) -> 0 | BL15: =IF($BI$5="","",IF($F15="","",BJ15-BJ$8)) -> -14.4 | BM15: =IF($BI$5="","",IF($F15="","",BK15-BK$8)) -> -30 | BT15: =IF(BR$5="","",IF($F15="","",SUM(BR15:BS15))) -> 0 | BU15: =IF($BR$5="","",IF($F15="","",BS15-BS$8)) -> -14.4 | BV15: =IF($BR$5="","",IF($F15="","",BT15-BT$8)) -> -30 | CC15: =IF(CA$5="","",IF($F15="","",SUM(CA15:CB15))) -> 0 | CD15: =IF($CA$5="","",IF($F15="","",CB15-CB$8)) -> -4.8 | CE15: =IF($CA$5="","",IF($F15="","",CC15-CC$8)) -> -10 | CL15: =IF(CJ$5="","",IF($F15="","",SUM(CJ15:CK15))) -> 0 | CM15: =IF($CJ$5="","",IF($F15="","",CK15-CK$8)) -> -4.8 | CN15: =IF($CJ$5="","",IF($F15="","",CL15-CL$8)) -> -10 | CU15: =IF(CS$5="","",IF($F15="","",SUM(CS15:CT15))) -> 0 | CV15: =IF($CS$5="","",IF($F15="","",CT15-CT$8)) -> -4.8 | CW15: =IF($CS$5="","",IF($F15="","",CU15-CU$8)) -> -10 | CX15: 34 | CY15: 0.05862068966
A16: =SUBTOTAL(3,$F$12:F16) -> 5 | B16: 30 | C16: =#REF! ->  | D16: 50 | E16: 534 | F16: امجد | G16: 15 | H16: 15 | I16: =IF(G$5="","",IF($F16="","",SUM(G16:H16))) -> 30 | J16: =IF($G$5="","",IF($F16="","",H16-H$8)) -> 5.4 | K16: =IF($G$5="","",IF($F16="","",I16-I$8)) -> 10 | R16: =IF(P$5="","",IF($F16="","",SUM(P16:Q16))) -> 0 | S16: =IF($P$5="","",IF($F16="","",Q16-Q$8)) -> -19.2 | T16: =IF($P$5="","",IF($F16="","",R16-R$8)) -> -40 | AA16: =IF(Y$5="","",IF($F16="","",SUM(Y16:Z16))) -> 0 | AB16: =IF($Y$5="","",IF($F16="","",Z16-Z$8)) -> -19.2 | AC16: =IF($Y$5="","",IF($F16="","",AA16-AA$8)) -> -40 | AJ16: =IF(AH$5="","",IF($F16="","",SUM(AH16:AI16))) -> 0 | AK16: =IF($AH$5="","",IF($F16="","",AI16-AI$8)) -> -9.6 | AL16: =IF($AH$5="","",IF($F16="","",AJ16-AJ$8)) -> -20 | AS16: =IF(AQ$5="","",IF($F16="","",SUM(AQ16:AR16))) -> 0 | AT16: =IF($AQ$5="","",IF($F16="","",AR16-AR$8)) -> -24 | AU16: =IF($AQ$5="","",IF($F16="","",AS16-AS$8)) -> -50 | BB16: =IF(AZ$5="","",IF($F16="","",SUM(AZ16:BA16))) -> 0 | BC16: =IF($AZ$5="","",IF($F16="","",BA16-BA$8)) -> -14.4 | BD16: =IF($AZ$5="","",IF($F16="","",BB16-BB$8)) -> -30 | BK16: =IF(BI$5="","",IF($F16="","",SUM(BI16:BJ16))) -> 0 | BL16: =IF($BI$5="","",IF($F16="","",BJ16-BJ$8)) -> -14.4 | BM16: =IF($BI$5="","",IF($F16="","",BK16-BK$8)) -> -30 | BT16: =IF(BR$5="","",IF($F16="","",SUM(BR16:BS16))) -> 0 | BU16: =IF($BR$5="","",IF($F16="","",BS16-BS$8)) -> -14.4 | BV16: =IF($BR$5="","",IF($F16="","",BT16-BT$8)) -> -30 | CC16: =IF(CA$5="","",IF($F16="","",SUM(CA16:CB16))) -> 0 | CD16: =IF($CA$5="","",IF($F16="","",CB16-CB$8)) -> -4.8 | CE16: =IF($CA$5="","",IF($F16="","",CC16-CC$8)) -> -10 | CL16: =IF(CJ$5="","",IF($F16="","",SUM(CJ16:CK16))) -> 0 | CM16: =IF($CJ$5="","",IF($F16="","",CK16-CK$8)) -> -4.8 | CN16: =IF($CJ$5="","",IF($F16="","",CL16-CL$8)) -> -10 | CU16: =IF(CS$5="","",IF($F16="","",SUM(CS16:CT16))) -> 0 | CV16: -4.8 | CW16: -10 | CX16: 30 | CY16: 0.05172413793
A17: =SUBTOTAL(3,$F$12:F17) -> 6 | B17: 25 | C17: =#REF! ->  | D17: 60 | E17: 634 | F17: انسام | G17: 16 | H17: 9 | I17: 25 | J17: -0.6 | K17: 5 | R17: 0 | S17: -19.2 | T17: -40 | AA17: 0 | AB17: -19.2 | AC17: -40 | AJ17: 0 | AK17: -9.6 | AL17: -20 | AS17: 0 | AT17: -24 | AU17: -50 | BB17: 0 | BC17: -14.4 | BD17: -30 | BK17: 0 | BL17: -14.4 | BM17: -30 | BT17: 0 | BU17: -14.4 | BV17: -30 | CC17: 0 | CD17: -4.8 | CE17: -10 | CL17: 0 | CM17: -4.8 | CN17: -10 | CU17: 0 | CV17: -4.8 | CW17: -10 | CX17: 25 | CY17: 0.04310344828
A18: =SUBTOTAL(3,$F$12:F18) -> 7 | B18: 34 | C18: =#REF! ->  | D18: 70 | E18: 734 | F18: إسماعيل | G18: 16 | H18: 18 | I18: 34 | J18: 8.4 | K18: 14 | R18: 0 | S18: -19.2 | T18: -40 | AA18: 0 | AB18: -19.2 | AC18: -40 | AJ18: 0 | AK18: -9.6 | AL18: -20 | AS18: 0 | AT18: -24 | AU18: -50 | BB18: 0 | BC18: -14.4 | BD18: -30 | BK18: 0 | BL18: -14.4 | BM18: -30 | BT18: 0 | BU18: -14.4 | BV18: -30 | CC18: 0 | CD18: -4.8 | CE18: -10 | CL18: 0 | CM18: -4.8 | CN18: -10 | CU18: 0 | CV18: -4.8 | CW18: -10 | CX18: 34 | CY18: 0.05862068966
A19: =SUBTOTAL(3,$F$12:F19) -> 8 | B19: 34 | C19: =#REF! ->  | D19: 80 | E19: 834 | F19: بشرى | G19: 10 | H19: 24 | I19: 34 | J19: 14.4 | K19: 14 | R19: 0 | S19: -19.2 | T19: -40 | AA19: 0 | AB19: -19.2 | AC19: -40 | AJ19: 0 | AK19: -9.6 | AL19: -20 | AS19: 0 | AT19: -24 | AU19: -50 | BB19: 0 | BC19: -14.4 | BD19: -30 | BK19: 0 | BL19: -14.4 | BM19: -30 | BT19: 0 | BU19: -14.4 | BV19: -30 | CC19: 0 | CD19: -4.8 | CE19: -10 | CL19: 0 | CM19: -4.8 | CN19: -10 | CU19: 0 | CV19: -4.8 | CW19: -10 | CX19: 34 | CY19: 0.05862068966
A20: =SUBTOTAL(3,$F$12:F20) -> 9 | B20: 32 | C20: =#REF! ->  | D20: 90 | E20: 934 | F20: بلقيس | G20: 9 | H20: 23 | I20: 32 | J20: 13.4 | K20: 12 | R20: 0 | S20: -19.2 | T20: -40 | AA20: 0 | AB20: -19.2 | AC20: -40 | AJ20: 0 | AK20: -9.6 | AL20: -20 | AS20: 0 | AT20: -24 | AU20: -50 | BB20: 0 | BC20: -14.4 | BD20: -30 | BK20: 0 | BL20: -14.4 | BM20: -30 | BT20: 0 | BU20: -14.4 | BV20: -30 | CC20: 0 | CD20: -4.8 | CE20: -10 | CL20: 0 | CM20: -4.8 | CN20: -10 | CU20: 0 | CV20: -4.8 | CW20: -10 | CX20: 32 | CY20: 0.05517241379
A21: =SUBTOTAL(3,$F$12:F21) -> 10 | B21: 30 | C21: =#REF! ->  | D21: 100 | E21: 1034 | F21: جبران | G21: 8 | H21: 22 | I21: 30 | J21: 12.4 | K21: 10 | R21: 0 | S21: -19.2 | T21: -40 | AA21: 0 | AB21: -19.2 | AC21: -40 | AJ21: 0 | AK21: -9.6 | AL21: -20 | AS21: 0 | AT21: -24 | AU21: -50 | BB21: 0 | BC21: -14.4 | BD21: -30 | BK21: 0 | BL21: -14.4 | BM21: -30 | BT21: 0 | BU21: -14.4 | BV21: -30 | CC21: 0 | CD21: -4.8 | CE21: -10 | CL21: 0 | CM21: -4.8 | CN21: -10 | CU21: 0 | CV21: -4.8 | CW21: -10 | CX21: 30 | CY21: 0.05172413793
A22: =SUBTOTAL(3,$F$12:F22) -> 11 | B22: 28 | C22: =#REF! ->  | D22: 110 | E22: 1134 | F22: جمال | G22: 6 | H22: 22 | I22: 28 | J22: 12.4 | K22: 8 | R22: 0 | S22: -19.2 | T22: -40 | AA22: 0 | AB22: -19.2 | AC22: -40 | AJ22: 0 | AK22: -9.6 | AL22: -20 | AS22: 0 | AT22: -24 | AU22: -50 | BB22: 0 | BC22: -14.4 | BD22: -30 | BK22: 0 | BL22: -14.4 | BM22: -30 | BT22: 0 | BU22: -14.4 | BV22: -30 | CC22: 0 | CD22: -4.8 | CE22: -10 | CL22: 0 | CM22: -4.8 | CN22: -10 | CU22: 0 | CV22: -4.8 | CW22: -10 | CX22: 28 | CY22: 0.04827586207
A23: =SUBTOTAL(3,$F$12:F23) -> 12 | B23: 33 | C23: =#REF! ->  | D23: 120 | E23: 1234 | F23: حسن | G23: 12 | H23: 21 | I23: 33 | J23: 11.4 | K23: 13 | R23: 0 | S23: -19.2 | T23: -40 | AA23: 0 | AB23: -19.2 | AC23: -40 | AJ23: 0 | AK23: -9.6 | AL23: -20 | AS23: 0 | AT23: -24 | AU23: -50 | BB23: 0 | BC23: -14.4 | BD23: -30 | BK23: 0 | BL23: -14.4 | BM23: -30 | BT23: 0 | BU23: -14.4 | BV23: -30 | CC23: 0 | CD23: -4.8 | CE23: -10 | CL23: 0 | CM23: -4.8 | CN23: -10 | CU23: 0 | CV23: -4.8 | CW23: -10 | CX23: 33 | CY23: 0.05689655172
A24: =SUBTOTAL(3,$F$12:F24) -> 13 | B24: 38 | C24: =#REF! ->  | D24: 130 | E24: 1334 | F24: حسين | G24: 14 | H24: 24 | I24: 38 | J24: 14.4 | K24: 18 | R24: 0 | S24: -19.2 | T24: -40 | AA24: 0 | AB24: -19.2 | AC24: -40 | AJ24: 0 | AK24: -9.6 | AL24: -20 | AS24: 0 | AT24: -24 | AU24: -50 | BB24: 0 | BC24: -14.4 | BD24: -30 | BK24: 0 | BL24: -14.4 | BM24: -30 | BT24: 0 | BU24: -14.4 | BV24: -30 | CC24: 0 | CD24: -4.8 | CE24: -10 | CL24: 0 | CM24: -4.8 | CN24: -10 | CU24: 0 | CV24: -4.8 | CW24: -10 | CX24: 38 | CY24: 0.06551724138
A25: =SUBTOTAL(3,$F$12:F25) -> 14 | B25: 39 | C25: =#REF! ->  | D25: 140 | E25: 1434 | F25: حنان | G25: 16 | H25: 23 | I25: 39 | J25: 13.4 | K25: 19 | R25: 0 | S25: -19.2 | T25: -40 | AA25: 0 | AB25: -19.2 | AC25: -40 | AJ25: 0 | AK25: -9.6 | AL25: -20 | AS25: 0 | AT25: -24 | AU25: -50 | BB25: 0 | BC25: -14.4 | BD25: -30 | BK25: 0 | BL25: -14.4 | BM25: -30 | BT25: 0 | BU25: -14.4 | BV25: -30 | CC25: 0 | CD25: -4.8 | CE25: -10 | CL25: 0 | CM25: -4.8 | CN25: -10 | CU25: 0 | CV25: =IF($CS$5="","",IF($F25="","",CT25-CT$8)) -> -4.8 | CW25: =IF($CS$5="","",IF($F25="","",CU25-CU$8)) -> -10 | CX25: 39 | CY25: 0.06724137931
A26: =SUBTOTAL(3,$F$12:F26) -> 15 | B26: 35 | C26: =#REF! ->  | D26: 150 | E26: 1534 | F26: خالد | G26: 15 | H26: 20 | I26: 35 | J26: 10.4 | K26: 15 | R26: 0 | S26: -19.2 | T26: -40 | AA26: 0 | AB26: -19.2 | AC26: -40 | AJ26: 0 | AK26: -9.6 | AL26: -20 | AS26: 0 | AT26: -24 | AU26: -50 | BB26: 0 | BC26: -14.4 | BD26: -30 | BK26: 0 | BL26: -14.4 | BM26: -30 | BT26: 0 | BU26: -14.4 | BV26: -30 | CC26: 0 | CD26: -4.8 | CE26: -10 | CL26: 0 | CM26: -4.8 | CN26: -10 | CU26: 0 | CV26: -4.8 | CW26: -10 | CX26: 35 | CY26: 0.06034482759
A27: =SUBTOTAL(3,$F$12:F27) -> 16 | B27: 33 | C27: =#REF! ->  | D27: 160 | E27: 1634 | F27: خليفة | G27: 14 | H27: 19 | I27: 33 | J27: 9.4 | K27: 13 | R27: 0 | S27: -19.2 | T27: -40 | AA27: 0 | AB27: -19.2 | AC27: -40 | AJ27: 0 | AK27: -9.6 | AL27: -20 | AS27: 0 | AT27: -24 | AU27: -50 | BB27: 0 | BC27: -14.4 | BD27: -30 | BK27: 0 | BL27: -14.4 | BM27: -30 | BT27: 0 | BU27: -14.4 | BV27: -30 | CC27: 0 | CD27: -4.8 | CE27: -10 | CL27: 0 | CM27: -4.8 | CN27: -10 | CU27: 0 | CV27: =IF($CS$5="","",IF($F27="","",CT27-CT$8)) -> -4.8 | CW27: =IF($CS$5="","",IF($F27="","",CU27-CU$8)) -> -10 | CX27: 33 | CY27: 0.05689655172
A28: =SUBTOTAL(3,$F$12:F28) -> 17 | B28: 30 | C28: =#REF! ->  | D28: 170 | E28: 1734 | F28: خيرية | G28: 13 | H28: 17 | I28: 30 | J28: 7.4 | K28: 10 | R28: 0 | S28: -19.2 | T28: -40 | AA28: 0 | AB28: -19.2 | AC28: -40 | AJ28: 0 | AK28: -9.6 | AL28: -20 | AS28: 0 | AT28: -24 | AU28: -50 | BB28: 0 | BC28: -14.4 | BD28: -30 | BK28: 0 | BL28: -14.4 | BM28: -30 | BT28: 0 | BU28: -14.4 | BV28: -30 | CC28: 0 | CD28: -4.8 | CE28: -10 | CL28: 0 | CM28: -4.8 | CN28: -10 | CU28: 0 | CV28: -4.8 | CW28: -10 | CX28: 30 | CY28: 0.05172413793
A29: =SUBTOTAL(3,$F$12:F29) -> 18 | B29: 26 | C29: =#REF! ->  | D29: 180 | E29: 1834 | F29: سالم | G29: 11 | H29: 15 | I29: 26 | J29: 5.4 | K29: 6 | R29: 0 | S29: -19.2 | T29: -40 | AA29: 0 | AB29: -19.2 | AC29: -40 | AJ29: 0 | AK29: -9.6 | AL29: -20 | AS29: 0 | AT29: -24 | AU29: -50 | BB29: 0 | BC29: -14.4 | BD29: -30 | BK29: 0 | BL29: -14.4 | BM29: -30 | BT29: 0 | BU29: -14.4 | BV29: -30 | CC29: 0 | CD29: -4.8 | CE29: -10 | CL29: 0 | CM29: -4.8 | CN29: -10 | CU29: 0 | CV29: -4.8 | CW29: -10 | CX29: 26 | CY29: 0.04482758621
A30: =SUBTOTAL(3,$F$12:F30) -> 19 | B30: 23 | C30: =#REF! ->  | D30: 190 | E30: 1934 | F30: سلوى | G30: 10 | H30: 13 | I30: 23 | J30: 3.4 | K30: 3 | R30: 0 | S30: -19.2 | T30: -40 | AA30: 0 | AB30: -19.2 | AC30: -40 | AJ30: 0 | AK30: -9.6 | AL30: -20 | AS30: 0 | AT30: -24 | AU30: -50 | BB30: 0 | BC30: -14.4 | BD30: -30 | BK30: 0 | BL30: -14.4 | BM30: -30 | BT30: 0 | BU30: -14.4 | BV30: -30 | CC30: 0 | CD30: -4.8 | CE30: -10 | CL30: 0 | CM30: -4.8 | CN30: -10 | CU30: 0 | CV30: -4.8 | CW30: -10 | CX30: 23 | CY30: 0.03965517241
A31: =SUBTOTAL(3,$F$12:F31) -> 20 | B31: 22 | C31: =#REF! ->  | D31: 200 | E31: 2034 | F31: سمية | G31: 11 | H31: 11 | I31: 22 | J31: 1.4 | K31: 2 | R31: 0 | S31: -19.2 | T31: -40 | AA31: 0 | AB31: -19.2 | AC31: -40 | AJ31: 0 | AK31: -9.6 | AL31: -20 | AS31: 0 | AT31: -24 | AU31: -50 | BB31: 0 | BC31: -14.4 | BD31: -30 | BK31: 0 | BL31: -14.4 | BM31: -30 | BT31: 0 | BU31: -14.4 | BV31: -30 | CC31: 0 | CD31: -4.8 | CE31: -10 | CL31: 0 | CM31: -4.8 | CN31: -10 | CU31: 0 | CV31: -4.8 | CW31: -10 | CX31: 22 | CY31: 0.03793103448
A32: =SUBTOTAL(3,$F$12:F32) -> 21 | B32: 21 | C32: =#REF! ->  | D32: 210 | E32: 2134 | F32: سمير | G32: 12 | H32: 9 | I32: 21 | J32: -0.6 | K32: 1 | R32: 0 | S32: -19.2 | T32: -40 | AA32: 0 | AB32: -19.2 | AC32: -40 | AJ32: 0 | AK32: -9.6 | AL32: -20 | AS32: 0 | AT32: -24 | AU32: -50 | BB32: 0 | BC32: -14.4 | BD32: -30 | BK32: 0 | BL32: -14.4 | BM32: -30 | BT32: 0 | BU32: -14.4 | BV32: -30 | CC32: 0 | CD32: -4.8 | CE32: -10 | CL32: 0 | CM32: -4.8 | CN32: -10 | CU32: 0 | CV32: -4.8 | CW32: -10 | CX32: 21 | CY32: 0.03620689655
A33: =SUBTOTAL(3,$F$12:F33) -> 22 | B33: 20 | C33: =#REF! ->  | D33: 220 | E33: 2234 | F33: شادي | G33: 12 | H33: 8 | I33: 20 | J33: -1.6 | K33: 0 | R33: 0 | S33: -19.2 | T33: -40 | AA33: 0 | AB33: -19.2 | AC33: -40 | AJ33: 0 | AK33: -9.6 | AL33: -20 | AS33: 0 | AT33: -24 | AU33: -50 | BB33: 0 | BC33: -14.4 | BD33: -30 | BK33: 0 | BL33: -14.4 | BM33: -30 | BT33: 0 | BU33: -14.4 | BV33: -30 | CC33: 0 | CD33: -4.8 | CE33: -10 | CL33: 0 | CM33: -4.8 | CN33: -10 | CU33: 0 | CV33: -4.8 | CW33: -10 | CX33: 20 | CY33: 0.03448275862
A34: =SUBTOTAL(3,$F$12:F34) -> 23 | B34: 0 | C34: =#REF! ->  | D34: 230 | E34: 2334 | F34: شوقي | I34: 0 | J34: -9.6 | K34: -20 | R34: 0 | S34: -19.2 | T34: -40 | AA34: 0 | AB34: -19.2 | AC34: -40 | AJ34: 0 | AK34: -9.6 | AL34: -20 | AS34: 0 | AT34: -24 | AU34: -50 | BB34: 0 | BC34: -14.4 | BD34: -30 | BK34: 0 | BL34: -14.4 | BM34: -30 | BT34: 0 | BU34: -14.4 | BV34: -30 | CC34: 0 | CD34: -4.8 | CE34: -10 | CL34: 0 | CM34: -4.8 | CN34: -10 | CU34: 0 | CV34: -4.8 | CW34: -10 | CX34: 0 | CY34: 0
A35: =SUBTOTAL(3,$F$12:F35) -> 24 | B35: 0 | C35: =#REF! ->  | D35: 240 | E35: 2434 | F35: شبير | I35: 0 | J35: -9.6 | K35: -20 | R35: 0 | S35: -19.2 | T35: -40 | AA35: 0 | AB35: -19.2 | AC35: -40 | AJ35: 0 | AK35: -9.6 | AL35: -20 | AS35: 0 | AT35: -24 | AU35: -50 | BB35: 0 | BC35: -14.4 | BD35: -30 | BK35: 0 | BL35: -14.4 | BM35: -30 | BT35: 0 | BU35: -14.4 | BV35: -30 | CC35: 0 | CD35: -4.8 | CE35: -10 | CL35: 0 | CM35: -4.8 | CN35: -10 | CU35: 0 | CV35: -4.8 | CW35: -10 | CX35: 0 | CY35: 0
A36: =SUBTOTAL(3,$F$12:F36) -> 25 | B36: 0 | C36: =#REF! ->  | D36: 250 | E36: 2534 | F36: عادل | I36: 0 | J36: -9.6 | K36: -20 | R36: 0 | S36: -19.2 | T36: -40 | AA36: 0 | AB36: -19.2 | AC36: -40 | AJ36: 0 | AK36: -9.6 | AL36: -20 | AS36: 0 | AT36: -24 | AU36: -50 | BB36: 0 | BC36: -14.4 | BD36: -30 | BK36: 0 | BL36: -14.4 | BM36: -30 | BT36: 0 | BU36: -14.4 | BV36: -30 | CC36: 0 | CD36: -4.8 | CE36: -10 | CL36: 0 | CM36: -4.8 | CN36: -10 | CU36: 0 | CV36: -4.8 | CW36: -10 | CX36: 0 | CY36: 0
A37: =SUBTOTAL(3,$F$12:F37) -> 26 | B37: 0 | C37: =#REF! ->  | D37: 260 | E37: 2634 | F37: عبد الجليل | I37: 0 | J37: -9.6 | K37: -20 | R37: 0 | S37: -19.2 | T37: -40 | AA37: 0 | AB37: -19.2 | AC37: -40 | AJ37: 0 | AK37: -9.6 | AL37: -20 | AS37: 0 | AT37: -24 | AU37: -50 | BB37: 0 | BC37: -14.4 | BD37: -30 | BK37: 0 | BL37: -14.4 | BM37: -30 | BT37: 0 | BU37: -14.4 | BV37: -30 | CC37: 0 | CD37: -4.8 | CE37: -10 | CL37: 0 | CM37: -4.8 | CN37: -10 | CU37: 0 | CV37: -4.8 | CW37: -10 | CX37: 0 | CY37: 0
A38: =SUBTOTAL(3,$F$12:F38) -> 27 | B38: 0 | C38: =#REF! ->  | D38: 270 | E38: 2734 | F38: عبد الرحمن | I38: 0 | J38: -9.6 | K38: -20 | R38: 0 | S38: -19.2 | T38: -40 | AA38: 0 | AB38: -19.2 | AC38: -40 | AJ38: 0 | AK38: -9.6 | AL38: -20 | AS38: 0 | AT38: -24 | AU38: -50 | BB38: 0 | BC38: -14.4 | BD38: -30 | BK38: 0 | BL38: -14.4 | BM38: -30 | BT38: 0 | BU38: -14.4 | BV38: -30 | CC38: 0 | CD38: -4.8 | CE38: -10 | CL38: 0 | CM38: -4.8 | CN38: -10 | CU38: 0 | CV38: -4.8 | CW38: -10 | CX38: 0 | CY38: 0
A39: =SUBTOTAL(3,$F$12:F39) -> 28 | B39: 0 | C39: =#REF! ->  | D39: 280 | E39: 2834 | F39: عبد السلام | I39: 0 | J39: -9.6 | K39: -20 | R39: 0 | S39: -19.2 | T39: -40 | AA39: 0 | AB39: -19.2 | AC39: -40 | AJ39: 0 | AK39: -9.6 | AL39: -20 | AS39: 0 | AT39: -24 | AU39: -50 | BB39: 0 | BC39: -14.4 | BD39: -30 | BK39: 0 | BL39: -14.4 | BM39: -30 | BT39: 0 | BU39: -14.4 | BV39: -30 | CC39: 0 | CD39: -4.8 | CE39: -10 | CL39: 0 | CM39: -4.8 | CN39: -10 | CU39: 0 | CV39: -4.8 | CW39: -10 | CX39: 0 | CY39: 0
A40: =SUBTOTAL(3,$F$12:F40) -> 29 | B40: 0 | C40: =#REF! ->  | D40: 290 | E40: 2934 | F40: عبد العظيم | I40: =IF(G$5="","",IF($F40="","",SUM(G40:H40))) -> 0 | J40: =IF($G$5="","",IF($F40="","",H40-H$8)) -> -9.6 | K40: =IF($G$5="","",IF($F40="","",I40-I$8)) -> -20 | R40: =IF(P$5="","",IF($F40="","",SUM(P40:Q40))) -> 0 | S40: =IF($P$5="","",IF($F40="","",Q40-Q$8)) -> -19.2 | T40: =IF($P$5="","",IF($F40="","",R40-R$8)) -> -40 | AA40: =IF(Y$5="","",IF($F40="","",SUM(Y40:Z40))) -> 0 | AB40: =IF($Y$5="","",IF($F40="","",Z40-Z$8)) -> -19.2 | AC40: =IF($Y$5="","",IF($F40="","",AA40-AA$8)) -> -40 | AJ40: =IF(AH$5="","",IF($F40="","",SUM(AH40:AI40))) -> 0 | AK40: =IF($AH$5="","",IF($F40="","",AI40-AI$8)) -> -9.6 | AL40: =IF($AH$5="","",IF($F40="","",AJ40-AJ$8)) -> -20 | AS40: =IF(AQ$5="","",IF($F40="","",SUM(AQ40:AR40))) -> 0 | AT40: =IF($AQ$5="","",IF($F40="","",AR40-AR$8)) -> -24 | AU40: =IF($AQ$5="","",IF($F40="","",AS40-AS$8)) -> -50 | BB40: =IF(AZ$5="","",IF($F40="","",SUM(AZ40:BA40))) -> 0 | BC40: =IF($AZ$5="","",IF($F40="","",BA40-BA$8)) -> -14.4 | BD40: =IF($AZ$5="","",IF($F40="","",BB40-BB$8)) -> -30 | BK40: =IF(BI$5="","",IF($F40="","",SUM(BI40:BJ40))) -> 0 | BL40: =IF($BI$5="","",IF($F40="","",BJ40-BJ$8)) -> -14.4 | BM40: =IF($BI$5="","",IF($F40="","",BK40-BK$8)) -> -30 | BT40: =IF(BR$5="","",IF($F40="","",SUM(BR40:BS40))) -> 0 | BU40: =IF($BR$5="","",IF($F40="","",BS40-BS$8)) -> -14.4 | BV40: =IF($BR$5="","",IF($F40="","",BT40-BT$8)) -> -30 | CC40: =IF(CA$5="","",IF($F40="","",SUM(CA40:CB40))) -> 0 | CD40: =IF($CA$5="","",IF($F40="","",CB40-CB$8)) -> -4.8 | CE40: =IF($CA$5="","",IF($F40="","",CC40-CC$8)) -> -10 | CL40: =IF(CJ$5="","",IF($F40="","",SUM(CJ40:CK40))) -> 0 | CM40: =IF($CJ$5="","",IF($F40="","",CK40-CK$8)) -> -4.8 | CN40: =IF($CJ$5="","",IF($F40="","",CL40-CL$8)) -> -10 | CU40: =IF(CS$5="","",IF($F40="","",SUM(CS40:CT40))) -> 0 | CV40: -4.8 | CW40: -10 | CX40: 0 | CY40: 0
A41: =SUBTOTAL(3,$F$12:F41) -> 30 | B41: 0 | C41: =#REF! ->  | D41: 300 | E41: 3034 | F41: عبد الله | I41: 0 | J41: -9.6 | K41: -20 | R41: 0 | S41: -19.2 | T41: -40 | AA41: 0 | AB41: -19.2 | AC41: -40 | AJ41: 0 | AK41: -9.6 | AL41: -20 | AS41: 0 | AT41: -24 | AU41: -50 | BB41: 0 | BC41: -14.4 | BD41: -30 | BK41: 0 | BL41: -14.4 | BM41: -30 | BT41: 0 | BU41: -14.4 | BV41: -30 | CC41: 0 | CD41: -4.8 | CE41: -10 | CL41: 0 | CM41: -4.8 | CN41: -10 | CU41: 0 | CV41: -4.8 | CW41: -10 | CX41: 0 | CY41: 0
A42: =SUBTOTAL(3,$F$12:F42) -> 31 | B42: 0 | C42: =#REF! ->  | D42: 310 | E42: 3134 | F42: عصام | I42: 0 | J42: -9.6 | K42: -20 | R42: 0 | S42: -19.2 | T42: -40 | AA42: 0 | AB42: -19.2 | AC42: -40 | AJ42: 0 | AK42: -9.6 | AL42: -20 | AS42: 0 | AT42: -24 | AU42: -50 | BB42: 0 | BC42: -14.4 | BD42: -30 | BK42: 0 | BL42: -14.4 | BM42: -30 | BT42: 0 | BU42: -14.4 | BV42: -30 | CC42: 0 | CD42: -4.8 | CE42: -10 | CL42: 0 | CM42: -4.8 | CN42: -10 | CU42: 0 | CV42: -4.8 | CW42: -10 | CX42: 0 | CY42: 0
A43: =SUBTOTAL(3,$F$12:F43) -> 32 | B43: 0 | C43: =#REF! ->  | D43: 320 | E43: 3234 | F43: عطية | I43: =IF(G$5="","",IF($F43="","",SUM(G43:H43))) -> 0 | J43: =IF($G$5="","",IF($F43="","",H43-H$8)) -> -9.6 | K43: =IF($G$5="","",IF($F43="","",I43-I$8)) -> -20 | R43: =IF(P$5="","",IF($F43="","",SUM(P43:Q43))) -> 0 | S43: =IF($P$5="","",IF($F43="","",Q43-Q$8)) -> -19.2 | T43: =IF($P$5="","",IF($F43="","",R43-R$8)) -> -40 | AA43: =IF(Y$5="","",IF($F43="","",SUM(Y43:Z43))) -> 0 | AB43: =IF($Y$5="","",IF($F43="","",Z43-Z$8)) -> -19.2 | AC43: =IF($Y$5="","",IF($F43="","",AA43-AA$8)) -> -40 | AJ43: =IF(AH$5="","",IF($F43="","",SUM(AH43:AI43))) -> 0 | AK43: =IF($AH$5="","",IF($F43="","",AI43-AI$8)) -> -9.6 | AL43: =IF($AH$5="","",IF($F43="","",AJ43-AJ$8)) -> -20 | AS43: =IF(AQ$5="","",IF($F43="","",SUM(AQ43:AR43))) -> 0 | AT43: =IF($AQ$5="","",IF($F43="","",AR43-AR$8)) -> -24 | AU43: =IF($AQ$5="","",IF($F43="","",AS43-AS$8)) -> -50 | BB43: =IF(AZ$5="","",IF($F43="","",SUM(AZ43:BA43))) -> 0 | BC43: =IF($AZ$5="","",IF($F43="","",BA43-BA$8)) -> -14.4 | BD43: =IF($AZ$5="","",IF($F43="","",BB43-BB$8)) -> -30 | BK43: =IF(BI$5="","",IF($F43="","",SUM(BI43:BJ43))) -> 0 | BL43: =IF($BI$5="","",IF($F43="","",BJ43-BJ$8)) -> -14.4 | BM43: =IF($BI$5="","",IF($F43="","",BK43-BK$8)) -> -30 | BT43: =IF(BR$5="","",IF($F43="","",SUM(BR43:BS43))) -> 0 | BU43: =IF($BR$5="","",IF($F43="","",BS43-BS$8)) -> -14.4 | BV43: =IF($BR$5="","",IF($F43="","",BT43-BT$8)) -> -30 | CC43: =IF(CA$5="","",IF($F43="","",SUM(CA43:CB43))) -> 0 | CD43: =IF($CA$5="","",IF($F43="","",CB43-CB$8)) -> -4.8 | CE43: =IF($CA$5="","",IF($F43="","",CC43-CC$8)) -> -10 | CL43: =IF(CJ$5="","",IF($F43="","",SUM(CJ43:CK43))) -> 0 | CM43: =IF($CJ$5="","",IF($F43="","",CK43-CK$8)) -> -4.8 | CN43: =IF($CJ$5="","",IF($F43="","",CL43-CL$8)) -> -10 | CU43: =IF(CS$5="","",IF($F43="","",SUM(CS43:CT43))) -> 0 | CV43: -4.8 | CW43: -10 | CX43: 0 | CY43: 0
A44: =SUBTOTAL(3,$F$12:F44) -> 33 | B44: =CX44 -> 0 | C44: =#REF! ->  | D44: 330 | E44: 3334 | F44: فاطمة | I44: 0 | J44: -9.6 | K44: -20 | R44: 0 | S44: -19.2 | T44: -40 | AA44: 0 | AB44: -19.2 | AC44: -40 | AJ44: 0 | AK44: -9.6 | AL44: -20 | AS44: 0 | AT44: -24 | AU44: -50 | BB44: 0 | BC44: -14.4 | BD44: -30 | BK44: 0 | BL44: -14.4 | BM44: -30 | BT44: 0 | BU44: -14.4 | BV44: -30 | CC44: 0 | CD44: -4.8 | CE44: -10 | CL44: 0 | CM44: -4.8 | CN44: -10 | CU44: 0 | CV44: -4.8 | CW44: -10 | CX44: 0 | CY44: 0
A45: =SUBTOTAL(3,$F$12:F45) -> 34 | B45: 0 | C45: =#REF! ->  | D45: 340 | E45: 3434 | F45: فريد | I45: 0 | J45: -9.6 | K45: -20 | R45: 0 | S45: -19.2 | T45: -40 | AA45: 0 | AB45: -19.2 | AC45: -40 | AJ45: 0 | AK45: -9.6 | AL45: -20 | AS45: 0 | AT45: -24 | AU45: -50 | BB45: 0 | BC45: -14.4 | BD45: -30 | BK45: 0 | BL45: -14.4 | BM45: -30 | BT45: 0 | BU45: -14.4 | BV45: -30 | CC45: 0 | CD45: -4.8 | CE45: -10 | CL45: 0 | CM45: -4.8 | CN45: -10 | CU45: 0 | CV45: -4.8 | CW45: -10 | CX45: 0 | CY45: 0
A46: =SUBTOTAL(3,$F$12:F46) -> 35 | B46: 0 | C46: =#REF! ->  | D46: 350 | E46: 3534 | F46: فيصل | I46: 0 | J46: -9.6 | K46: -20 | R46: 0 | S46: -19.2 | T46: -40 | AA46: 0 | AB46: -19.2 | AC46: -40 | AJ46: 0 | AK46: -9.6 | AL46: -20 | AS46: 0 | AT46: -24 | AU46: -50 | BB46: 0 | BC46: -14.4 | BD46: -30 | BK46: 0 | BL46: -14.4 | BM46: -30 | BT46: 0 | BU46: -14.4 | BV46: -30 | CC46: 0 | CD46: -4.8 | CE46: -10 | CL46: 0 | CM46: -4.8 | CN46: -10 | CU46: 0 | CV46: -4.8 | CW46: -10 | CX46: 0 | CY46: 0
A47: =SUBTOTAL(3,$F$12:F47) -> 36 | B47: 0 | C47: =#REF! ->  | D47: 360 | E47: 3634 | F47: قاسم | I47: 0 | J47: -9.6 | K47: -20 | R47: 0 | S47: -19.2 | T47: -40 | AA47: 0 | AB47: -19.2 | AC47: -40 | AJ47: 0 | AK47: -9.6 | AL47: -20 | AS47: 0 | AT47: -24 | AU47: -50 | BB47: 0 | BC47: -14.4 | BD47: -30 | BK47: 0 | BL47: -14.4 | BM47: -30 | BT47: 0 | BU47: -14.4 | BV47: -30 | CC47: 0 | CD47: -4.8 | CE47: -10 | CL47: 0 | CM47: -4.8 | CN47: -10 | CU47: 0 | CV47: -4.8 | CW47: -10 | CX47: 0 | CY47: 0
A48: =SUBTOTAL(3,$F$12:F48) -> 37 | B48: 0 | C48: =#REF! ->  | D48: 370 | E48: 3734 | F48: لؤى | I48: 0 | J48: -9.6 | K48: -20 | R48: 0 | S48: -19.2 | T48: -40 | AA48: 0 | AB48: -19.2 | AC48: -40 | AJ48: 0 | AK48: -9.6 | AL48: -20 | AS48: 0 | AT48: -24 | AU48: -50 | BB48: 0 | BC48: -14.4 | BD48: -30 | BK48: 0 | BL48: -14.4 | BM48: -30 | BT48: 0 | BU48: -14.4 | BV48: -30 | CC48: 0 | CD48: -4.8 | CE48: -10 | CL48: 0 | CM48: -4.8 | CN48: -10 | CU48: 0 | CV48: -4.8 | CW48: -10 | CX48: 0 | CY48: 0
A49: =SUBTOTAL(3,$F$12:F49) -> 38 | B49: 0 | C49: =#REF! ->  | D49: 380 | E49: 3834 | F49: ليلى | I49: 0 | J49: -9.6 | K49: -20 | R49: 0 | S49: -19.2 | T49: -40 | AA49: 0 | AB49: -19.2 | AC49: -40 | AJ49: 0 | AK49: -9.6 | AL49: -20 | AS49: 0 | AT49: -24 | AU49: -50 | BB49: 0 | BC49: -14.4 | BD49: -30 | BK49: 0 | BL49: -14.4 | BM49: -30 | BT49: 0 | BU49: -14.4 | BV49: -30 | CC49: 0 | CD49: -4.8 | CE49: -10 | CL49: 0 | CM49: -4.8 | CN49: -10 | CU49: 0 | CV49: -4.8 | CW49: -10 | CX49: 0 | CY49: 0
A50: =SUBTOTAL(3,$F$12:F50) -> 39 | B50: 0 | C50: =#REF! ->  | D50: 390 | E50: 3934 | F50: محمد | I50: 0 | J50: -9.6 | K50: -20 | R50: 0 | S50: -19.2 | T50: -40 | AA50: 0 | AB50: -19.2 | AC50: -40 | AJ50: 0 | AK50: -9.6 | AL50: -20 | AS50: 0 | AT50: -24 | AU50: -50 | BB50: 0 | BC50: -14.4 | BD50: -30 | BK50: 0 | BL50: -14.4 | BM50: -30 | BT50: 0 | BU50: -14.4 | BV50: -30 | CC50: 0 | CD50: -4.8 | CE50: -10 | CL50: 0 | CM50: -4.8 | CN50: -10 | CU50: 0 | CV50: -4.8 | CW50: -10 | CX50: 0 | CY50: 0
A51: =SUBTOTAL(3,$F$12:F51) -> 40 | B51: 0 | C51: =#REF! ->  | D51: 400 | E51: 4034 | F51: مراد | I51: =IF(G$5="","",IF($F51="","",SUM(G51:H51))) -> 0 | J51: =IF($G$5="","",IF($F51="","",H51-H$8)) -> -9.6 | K51: =IF($G$5="","",IF($F51="","",I51-I$8)) -> -20 | R51: =IF(P$5="","",IF($F51="","",SUM(P51:Q51))) -> 0 | S51: =IF($P$5="","",IF($F51="","",Q51-Q$8)) -> -19.2 | T51: =IF($P$5="","",IF($F51="","",R51-R$8)) -> -40 | AA51: =IF(Y$5="","",IF($F51="","",SUM(Y51:Z51))) -> 0 | AB51: =IF($Y$5="","",IF($F51="","",Z51-Z$8)) -> -19.2 | AC51: =IF($Y$5="","",IF($F51="","",AA51-AA$8)) -> -40 | AJ51: =IF(AH$5="","",IF($F51="","",SUM(AH51:AI51))) -> 0 | AK51: =IF($AH$5="","",IF($F51="","",AI51-AI$8)) -> -9.6 | AL51: =IF($AH$5="","",IF($F51="","",AJ51-AJ$8)) -> -20 | AS51: =IF(AQ$5="","",IF($F51="","",SUM(AQ51:AR51))) -> 0 | AT51: =IF($AQ$5="","",IF($F51="","",AR51-AR$8)) -> -24 | AU51: =IF($AQ$5="","",IF($F51="","",AS51-AS$8)) -> -50 | BB51: =IF(AZ$5="","",IF($F51="","",SUM(AZ51:BA51))) -> 0 | BC51: =IF($AZ$5="","",IF($F51="","",BA51-BA$8)) -> -14.4 | BD51: =IF($AZ$5="","",IF($F51="","",BB51-BB$8)) -> -30 | BK51: =IF(BI$5="","",IF($F51="","",SUM(BI51:BJ51))) -> 0 | BL51: =IF($BI$5="","",IF($F51="","",BJ51-BJ$8)) -> -14.4 | BM51: =IF($BI$5="","",IF($F51="","",BK51-BK$8)) -> -30 | BT51: =IF(BR$5="","",IF($F51="","",SUM(BR51:BS51))) -> 0 | BU51: =IF($BR$5="","",IF($F51="","",BS51-BS$8)) -> -14.4 | BV51: =IF($BR$5="","",IF($F51="","",BT51-BT$8)) -> -30 | CC51: =IF(CA$5="","",IF($F51="","",SUM(CA51:CB51))) -> 0 | CD51: =IF($CA$5="","",IF($F51="","",CB51-CB$8)) -> -4.8 | CE51: =IF($CA$5="","",IF($F51="","",CC51-CC$8)) -> -10 | CL51: =IF(CJ$5="","",IF($F51="","",SUM(CJ51:CK51))) -> 0 | CM51: =IF($CJ$5="","",IF($F51="","",CK51-CK$8)) -> -4.8 | CN51: =IF($CJ$5="","",IF($F51="","",CL51-CL$8)) -> -10 | CU51: =IF(CS$5="","",IF($F51="","",SUM(CS51:CT51))) -> 0 | CV51: -4.8 | CW51: -10 | CX51: 0 | CY51: 0
A52: =SUBTOTAL(3,$F$12:F52) -> 41 | B52: 0 | C52: =#REF! ->  | D52: 410 | E52: 4134 | F52: مروى | I52: 0 | J52: -9.6 | K52: -20 | R52: 0 | S52: -19.2 | T52: -40 | AA52: 0 | AB52: -19.2 | AC52: -40 | AJ52: 0 | AK52: -9.6 | AL52: -20 | AS52: 0 | AT52: -24 | AU52: -50 | BB52: 0 | BC52: -14.4 | BD52: -30 | BK52: 0 | BL52: -14.4 | BM52: -30 | BT52: 0 | BU52: -14.4 | BV52: -30 | CC52: 0 | CD52: -4.8 | CE52: -10 | CL52: 0 | CM52: -4.8 | CN52: -10 | CU52: 0 | CV52: -4.8 | CW52: -10 | CX52: 0 | CY52: 0
A53: =SUBTOTAL(3,$F$12:F53) -> 42 | B53: 0 | C53: =#REF! ->  | D53: 420 | E53: 4234 | F53: مصطفى | I53: 0 | J53: -9.6 | K53: -20 | R53: 0 | S53: -19.2 | T53: -40 | AA53: 0 | AB53: -19.2 | AC53: -40 | AJ53: 0 | AK53: -9.6 | AL53: -20 | AS53: 0 | AT53: -24 | AU53: -50 | BB53: 0 | BC53: -14.4 | BD53: -30 | BK53: 0 | BL53: -14.4 | BM53: -30 | BT53: 0 | BU53: -14.4 | BV53: -30 | CC53: 0 | CD53: -4.8 | CE53: -10 | CL53: 0 | CM53: -4.8 | CN53: -10 | CU53: 0 | CV53: -4.8 | CW53: -10 | CX53: 0 | CY53: 0
A54: =SUBTOTAL(3,$F$12:F54) -> 43 | B54: 0 | C54: =#REF! ->  | D54: 430 | E54: 4334 | F54: معتز | I54: 0 | J54: -9.6 | K54: -20 | R54: 0 | S54: -19.2 | T54: -40 | AA54: 0 | AB54: -19.2 | AC54: -40 | AJ54: 0 | AK54: -9.6 | AL54: -20 | AS54: 0 | AT54: -24 | AU54: -50 | BB54: 0 | BC54: -14.4 | BD54: -30 | BK54: 0 | BL54: -14.4 | BM54: -30 | BT54: 0 | BU54: -14.4 | BV54: -30 | CC54: 0 | CD54: -4.8 | CE54: -10 | CL54: 0 | CM54: -4.8 | CN54: -10 | CU54: 0 | CV54: -4.8 | CW54: -10 | CX54: 0 | CY54: 0
A55: =SUBTOTAL(3,$F$12:F55) -> 44 | B55: 0 | C55: =#REF! ->  | D55: 440 | E55: 4434 | F55: مفتاح | I55: 0 | J55: -9.6 | K55: -20 | R55: 0 | S55: -19.2 | T55: -40 | AA55: 0 | AB55: -19.2 | AC55: -40 | AJ55: 0 | AK55: -9.6 | AL55: -20 | AS55: 0 | AT55: -24 | AU55: -50 | BB55: 0 | BC55: -14.4 | BD55: -30 | BK55: 0 | BL55: -14.4 | BM55: -30 | BT55: 0 | BU55: -14.4 | BV55: -30 | CC55: 0 | CD55: -4.8 | CE55: -10 | CL55: 0 | CM55: -4.8 | CN55: -10 | CU55: 0 | CV55: -4.8 | CW55: -10 | CX55: 0 | CY55: 0
A56: =SUBTOTAL(3,$F$12:F56) -> 45 | B56: 0 | C56: =#REF! ->  | D56: 450 | E56: 4534 | F56: ممدوح | I56: 0 | J56: -9.6 | K56: -20 | R56: 0 | S56: -19.2 | T56: -40 | AA56: 0 | AB56: -19.2 | AC56: -40 | AJ56: 0 | AK56: -9.6 | AL56: -20 | AS56: 0 | AT56: -24 | AU56: -50 | BB56: 0 | BC56: -14.4 | BD56: -30 | BK56: 0 | BL56: -14.4 | BM56: -30 | BT56: 0 | BU56: -14.4 | BV56: -30 | CC56: 0 | CD56: -4.8 | CE56: -10 | CL56: 0 | CM56: -4.8 | CN56: -10 | CU56: 0 | CV56: -4.8 | CW56: -10 | CX56: 0 | CY56: 0
A57: =SUBTOTAL(3,$F$12:F57) -> 46 | B57: 0 | C57: =#REF! ->  | D57: 460 | E57: 4634 | F57: منير | I57: 0 | J57: -9.6 | K57: -20 | R57: 0 | S57: -19.2 | T57: -40 | AA57: 0 | AB57: -19.2 | AC57: -40 | AJ57: 0 | AK57: -9.6 | AL57: -20 | AS57: 0 | AT57: -24 | AU57: -50 | BB57: 0 | BC57: -14.4 | BD57: -30 | BK57: 0 | BL57: -14.4 | BM57: -30 | BT57: 0 | BU57: -14.4 | BV57: -30 | CC57: 0 | CD57: -4.8 | CE57: -10 | CL57: 0 | CM57: -4.8 | CN57: -10 | CU57: 0 | CV57: -4.8 | CW57: -10 | CX57: 0 | CY57: 0
A58: =SUBTOTAL(3,$F$12:F58) -> 47 | B58: 0 | C58: =#REF! ->  | D58: 470 | E58: 4734 | F58: مودة | I58: 0 | J58: -9.6 | K58: -20 | R58: 0 | S58: -19.2 | T58: -40 | AA58: 0 | AB58: -19.2 | AC58: -40 | AJ58: 0 | AK58: -9.6 | AL58: -20 | AS58: 0 | AT58: -24 | AU58: -50 | BB58: 0 | BC58: -14.4 | BD58: -30 | BK58: 0 | BL58: -14.4 | BM58: -30 | BT58: 0 | BU58: -14.4 | BV58: -30 | CC58: 0 | CD58: -4.8 | CE58: -10 | CL58: 0 | CM58: -4.8 | CN58: -10 | CU58: 0 | CV58: -4.8 | CW58: -10 | CX58: 0 | CY58: 0
A59: =SUBTOTAL(3,$F$12:F59) -> 48 | B59: 0 | C59: =#REF! ->  | D59: 480 | E59: 4834 | F59: نوري | I59: 0 | J59: -9.6 | K59: -20 | R59: 0 | S59: -19.2 | T59: -40 | AA59: 0 | AB59: -19.2 | AC59: -40 | AJ59: 0 | AK59: -9.6 | AL59: -20 | AS59: 0 | AT59: -24 | AU59: -50 | BB59: 0 | BC59: -14.4 | BD59: -30 | BK59: 0 | BL59: -14.4 | BM59: -30 | BT59: 0 | BU59: -14.4 | BV59: -30 | CC59: 0 | CD59: -4.8 | CE59: -10 | CL59: 0 | CM59: -4.8 | CN59: -10 | CU59: 0 | CV59: -4.8 | CW59: -10 | CX59: 0 | CY59: 0
A60: =SUBTOTAL(3,$F$12:F60) -> 49 | B60: 0 | C60: =#REF! ->  | D60: 490 | E60: 4934 | F60: يعقوب | I60: 0 | J60: -9.6 | K60: -20 | R60: 0 | S60: -19.2 | T60: -40 | AA60: 0 | AB60: -19.2 | AC60: -40 | AJ60: 0 | AK60: -9.6 | AL60: -20 | AS60: 0 | AT60: -24 | AU60: -50 | BB60: 0 | BC60: -14.4 | BD60: -30 | BK60: 0 | BL60: -14.4 | BM60: -30 | BT60: 0 | BU60: -14.4 | BV60: -30 | CC60: 0 | CD60: -4.8 | CE60: -10 | CL60: 0 | CM60: -4.8 | CN60: -10 | CU60: 0 | CV60: -4.8 | CW60: -10 | CX60: 0 | CY60: 0
A61: =SUBTOTAL(3,$F$12:F61) -> 50 | B61: 0 | C61: =#REF! ->  | D61: 500 | E61: 5034 | F61: يوسف | I61: 0 | J61: -9.6 | K61: -20 | R61: 0 | S61: -19.2 | T61: -40 | AA61: 0 | AB61: -19.2 | AC61: -40 | AJ61: 0 | AK61: -9.6 | AL61: -20 | AS61: 0 | AT61: -24 | AU61: -50 | BB61: 0 | BC61: -14.4 | BD61: -30 | BK61: 0 | BL61: -14.4 | BM61: -30 | BT61: 0 | BU61: -14.4 | BV61: -30 | CC61: 0 | CD61: -4.8 | CE61: -10 | CL61: 0 | CM61: -4.8 | CN61: -10 | CU61: 0 | CV61: -4.8 | CW61: -10 | CX61: 0 | CY61: 0
C62: ناجح
C63: الرجاء الاهتمام أكثر
